[Event "Titled Tuesday Blitz February 21 Early 2023"]
[White "Predke, Alexandr"]
[Black "Lehtosaari, Mauri"]
[WhiteFideId "24107581"]
[BlackFideId "501999"]
[WhiteElo "2685"]
[BlackElo "2176"]
[Result "1-0"]
[Round "10"]
[TimeControl "180+2"]
[Date "2023.02.21"]
[WhiteClock "0:00:06"]
[BlackClock "0:00:11"]

1. Nf3 {[%clk 0:02:57]}  d5 {[%clk 0:02:59]} 2. c4 {[%clk 0:02:56]}  c6 {[%clk 0:02:59]} 3. b3 {[%clk 0:02:51]}  Nf6 {[%clk 0:02:56]} 4. Bb2 {[%clk 0:02:49]}  Bg4 {[%clk 0:02:56]} 5. Ne5 {[%clk 0:02:48]}  Bf5 {[%clk 0:02:54]} 6. e3 {[%clk 0:02:44]}  Nbd7 {[%clk 0:02:52]} 7. Be2 {[%clk 0:02:35]}  e6 {[%clk 0:02:50]} 8. f4 {[%clk 0:02:25]}  Bd6 {[%clk 0:02:39]} 9. O-O {[%clk 0:02:17]}  Qe7 {[%clk 0:02:07]} 10. d3 {[%clk 0:02:14]}  h6 {[%clk 0:02:03]} 11. Nd2 {[%clk 0:02:07]}  Bh7 {[%clk 0:01:58]} 12. Kh1 {[%clk 0:02:02]}  a6 {[%clk 0:01:45]} 13. Qe1 {[%clk 0:01:55]}  Bc7 {[%clk 0:01:44]} 14. Ndf3 {[%clk 0:01:50]}  Nxe5 {[%clk 0:01:42]} 15. Nxe5 {[%clk 0:01:50]}  O-O {[%clk 0:01:29]} 16. Qg3 {[%clk 0:01:49]}  Ne8 {[%clk 0:01:28]} 17. Ng4 {[%clk 0:01:39]}  Bg6 {[%clk 0:01:13]} 18. Rae1 {[%clk 0:01:09]}  Kh7 {[%clk 0:01:06]} 19. e4 {[%clk 0:01:05]}  f5 {[%clk 0:00:58]} 20. exd5 {[%clk 0:00:55]}  fxg4 {[%clk 0:00:52]} 21. Bxg4 {[%clk 0:00:55]}  cxd5 {[%clk 0:00:37]} 22. Rxe6 {[%clk 0:00:52]}  Qf7 {[%clk 0:00:37]} 23. Qe1 {[%clk 0:00:27]}  Bd6 {[%clk 0:00:32]} 24. f5 {[%clk 0:00:23]}  Bh5 {[%clk 0:00:31]} 25. Bh3 {[%clk 0:00:14]}  a5 {[%clk 0:00:28]} 26. cxd5 {[%clk 0:00:12]}  Bb4 {[%clk 0:00:28]} 27. Qe4 {[%clk 0:00:11]}  Nf6 {[%clk 0:00:27]} 28. Bxf6 {[%clk 0:00:10]}  gxf6 {[%clk 0:00:28]} 29. g4 {[%clk 0:00:10]}  Rg8 {[%clk 0:00:25]} 30. d6 {[%clk 0:00:09]}  Rg7 {[%clk 0:00:24]} 31. Re7 {[%clk 0:00:08]}  Qf8 {[%clk 0:00:22]} 32. gxh5 {[%clk 0:00:05]}  Bxd6 {[%clk 0:00:21]} 33. Rxg7+ {[%clk 0:00:05]}  Qxg7 {[%clk 0:00:22]} 34. Rg1 {[%clk 0:00:06]}  Qf7 {[%clk 0:00:21]} 35. Qe6 {[%clk 0:00:04]}  Qxe6 {[%clk 0:00:18]} 36. fxe6 {[%clk 0:00:05]}  Be5 {[%clk 0:00:18]} 37. Bf5+ {[%clk 0:00:05]}  Kh8 {[%clk 0:00:18]} 38. Rg6 {[%clk 0:00:05]}  Re8 {[%clk 0:00:16]} 39. Rxh6+ {[%clk 0:00:05]}  Kg7 {[%clk 0:00:17]} 40. Rh7+ {[%clk 0:00:05]}  Kg8 {[%clk 0:00:17]} 41. Rxb7 {[%clk 0:00:05]}  Bf4 {[%clk 0:00:16]} 42. Kg2 {[%clk 0:00:04]}  Bd6 {[%clk 0:00:14]} 43. h3 {[%clk 0:00:03]}  Re7 {[%clk 0:00:13]} 44. Rxe7 {[%clk 0:00:02]}  Bxe7 {[%clk 0:00:14]} 45. Kf3 {[%clk 0:00:03]}  Kg7 {[%clk 0:00:14]} 46. Ke4 {[%clk 0:00:04]}  Bd6 {[%clk 0:00:14]} 47. Kd5 {[%clk 0:00:04]}  Ba3 {[%clk 0:00:13]} 48. Kc6 {[%clk 0:00:04]}  Kf8 {[%clk 0:00:13]} 49. d4 {[%clk 0:00:04]}  Ke7 {[%clk 0:00:13]} 50. d5 {[%clk 0:00:05]}  Bd6 {[%clk 0:00:12]} 51. h6 {[%clk 0:00:05]}  Bf4 {[%clk 0:00:11]} 52. h7 {[%clk 0:00:06]} 1-0


[Site "https://www.chess.com"]

[Event "Titled Tuesday Blitz February 21 Early 2023"]
[White "Dehtiarov, Roman"]
[Black "Derjabin, Ilja"]
[WhiteFideId "14186640"]
[BlackFideId "14104768"]
[WhiteElo "2289"]
[BlackElo "2333"]
[Result "1-0"]
[Round "10"]
[TimeControl "180+2"]
[Date "2023.02.21"]
[WhiteClock "0:00:03"]
[BlackClock "0:00:02"]

1. e4 {[%clk 0:03:00]}  c5 {[%clk 0:02:57]} 2. Nc3 {[%clk 0:03:00]}  d6 {[%clk 0:02:54]} 3. f4 {[%clk 0:03:01]}  g6 {[%clk 0:02:54]} 4. Nf3 {[%clk 0:03:01]}  Bg7 {[%clk 0:02:55]} 5. Bb5+ {[%clk 0:03:02]}  Bd7 {[%clk 0:02:54]} 6. Bxd7+ {[%clk 0:03:02]}  Qxd7 {[%clk 0:02:54]} 7. O-O {[%clk 0:03:03]}  Nf6 {[%clk 0:02:54]} 8. d3 {[%clk 0:03:03]}  O-O {[%clk 0:02:54]} 9. Qe1 {[%clk 0:03:04]}  Nc6 {[%clk 0:02:54]} 10. Bd2 {[%clk 0:03:04]}  Nd4 {[%clk 0:02:46]} 11. Rc1 {[%clk 0:03:02]}  Rac8 {[%clk 0:02:44]} 12. Nxd4 {[%clk 0:02:50]}  cxd4 {[%clk 0:02:43]} 13. Ne2 {[%clk 0:02:51]}  Qa4 {[%clk 0:02:31]} 14. b3 {[%clk 0:02:03]}  Qxa2 {[%clk 0:02:23]} 15. Qd1 {[%clk 0:02:04]}  Ng4 {[%clk 0:02:14]} 16. Rf3 {[%clk 0:01:47]}  Rc7 {[%clk 0:01:34]} 17. h3 {[%clk 0:01:38]}  Ne3 {[%clk 0:01:22]} 18. Bxe3 {[%clk 0:01:38]}  dxe3 {[%clk 0:01:23]} 19. Rxe3 {[%clk 0:01:37]}  b5 {[%clk 0:01:11]} 20. d4 {[%clk 0:01:33]}  Rfc8 {[%clk 0:01:08]} 21. c3 {[%clk 0:01:32]}  Qa5 {[%clk 0:00:59]} 22. b4 {[%clk 0:01:06]}  Qb6 {[%clk 0:00:58]} 23. Ra1 {[%clk 0:01:04]}  e5 {[%clk 0:00:57]} 24. fxe5 {[%clk 0:00:49]}  dxe5 {[%clk 0:00:55]} 25. Kh1 {[%clk 0:00:49]}  Re8 {[%clk 0:00:45]} 26. Qd3 {[%clk 0:00:15]}  exd4 {[%clk 0:00:40]} 27. cxd4 {[%clk 0:00:16]}  Rc4 {[%clk 0:00:38]} 28. e5 {[%clk 0:00:15]}  Rxb4 {[%clk 0:00:36]} 29. Rf3 {[%clk 0:00:13]}  a5 {[%clk 0:00:31]} 30. Raf1 {[%clk 0:00:11]}  Re7 {[%clk 0:00:28]} 31. Qe4 {[%clk 0:00:09]}  Qb7 {[%clk 0:00:24]} 32. Qe3 {[%clk 0:00:06]}  a4 {[%clk 0:00:19]} 33. Nf4 {[%clk 0:00:05]}  Rb3 {[%clk 0:00:18]} 34. Qc1 {[%clk 0:00:06]}  Rxf3 {[%clk 0:00:17]} 35. Rxf3 {[%clk 0:00:07]}  Bh6 {[%clk 0:00:16]} 36. Qc5 {[%clk 0:00:05]}  Bxf4 {[%clk 0:00:15]} 37. Rxf4 {[%clk 0:00:06]}  b4 {[%clk 0:00:11]} 38. d5 {[%clk 0:00:06]}  Rxe5 {[%clk 0:00:09]} 39. Rxb4 {[%clk 0:00:06]}  Qd7 {[%clk 0:00:03]} 40. Rb5 {[%clk 0:00:03]}  Re1+ {[%clk 0:00:02]} 41. Kh2 {[%clk 0:00:03]} 1-0


[Site "https://www.chess.com"]

[Event "Titled Tuesday Blitz February 21 Early 2023"]
[White "Alex_Sahakyan2006"]
[Black "Arencibia Monduy, Antonio"]
[BlackFideId "3507939"]
[WhiteElo "2664"]
[BlackElo "2122"]
[Result "1-0"]
[Round "10"]
[TimeControl "180+2"]
[Date "2023.02.21"]
[WhiteClock "0:00:23"]
[BlackClock "0:00:01"]

1. Nf3 {[%clk 0:03:00]}  d5 {[%clk 0:02:58]} 2. g3 {[%clk 0:02:57]}  g6 {[%clk 0:02:58]} 3. Bg2 {[%clk 0:02:54]}  Bg7 {[%clk 0:02:59]} 4. c4 {[%clk 0:02:53]}  c6 {[%clk 0:02:54]} 5. d4 {[%clk 0:02:51]}  Nf6 {[%clk 0:02:52]} 6. Nc3 {[%clk 0:02:49]}  O-O {[%clk 0:02:52]} 7. cxd5 {[%clk 0:02:47]}  cxd5 {[%clk 0:02:52]} 8. Ne5 {[%clk 0:02:47]}  Nc6 {[%clk 0:02:52]} 9. Nxc6 {[%clk 0:02:45]}  bxc6 {[%clk 0:02:52]} 10. O-O {[%clk 0:02:43]}  Qb6 {[%clk 0:02:45]} 11. Na4 {[%clk 0:02:40]}  Qb5 {[%clk 0:02:46]} 12. b3 {[%clk 0:02:39]}  Nd7 {[%clk 0:02:35]} 13. Ba3 {[%clk 0:02:35]}  Re8 {[%clk 0:02:35]} 14. Rc1 {[%clk 0:02:34]}  e5 {[%clk 0:02:35]} 15. dxe5 {[%clk 0:02:34]}  Rxe5 {[%clk 0:02:28]} 16. Bb2 {[%clk 0:02:25]}  Re8 {[%clk 0:01:45]} 17. Bxg7 {[%clk 0:02:24]}  Kxg7 {[%clk 0:01:45]} 18. Qd4+ {[%clk 0:02:23]}  Kg8 {[%clk 0:01:44]} 19. e3 {[%clk 0:02:23]}  Bb7 {[%clk 0:01:32]} 20. Rc2 {[%clk 0:02:22]}  a5 {[%clk 0:01:29]} 21. Rfc1 {[%clk 0:02:21]}  Qb4 {[%clk 0:01:22]} 22. Qb2 {[%clk 0:02:03]}  Rac8 {[%clk 0:01:21]} 23. Bh3 {[%clk 0:02:01]}  f5 {[%clk 0:01:21]} 24. a3 {[%clk 0:01:46]}  Qd6 {[%clk 0:01:17]} 25. Nc5 {[%clk 0:01:42]}  Ba8 {[%clk 0:01:03]} 26. Nxd7 {[%clk 0:01:36]}  Qxd7 {[%clk 0:01:03]} 27. Rc5 {[%clk 0:01:36]}  Qa7 {[%clk 0:00:45]} 28. Qd4 {[%clk 0:01:27]}  Rb8 {[%clk 0:00:08]} 29. R1c3 {[%clk 0:01:16]}  Qb6 {[%clk 0:00:07]} 30. Bg2 {[%clk 0:01:12]}  Qd8 {[%clk 0:00:05]} 31. h4 {[%clk 0:01:09]}  h5 {[%clk 0:00:05]} 32. Kh2 {[%clk 0:01:08]}  Kh7 {[%clk 0:00:05]} 33. b4 {[%clk 0:01:06]}  axb4 {[%clk 0:00:05]} 34. axb4 {[%clk 0:01:07]}  Re7 {[%clk 0:00:04]} 35. Ra5 {[%clk 0:01:03]}  Bb7 {[%clk 0:00:02]} 36. Ra7 {[%clk 0:01:00]}  Ra8 {[%clk 0:00:02]} 37. Rca3 {[%clk 0:00:59]}  Rxa7 {[%clk 0:00:03]} 38. Rxa7 {[%clk 0:01:00]}  Bc8 {[%clk 0:00:03]} 39. Ra8 {[%clk 0:00:54]}  Qc7 {[%clk 0:00:03]} 40. Qc5 {[%clk 0:00:44]}  Rf7 {[%clk 0:00:02]} 41. Ra3 {[%clk 0:00:38]}  Bb7 {[%clk 0:00:02]} 42. Rc3 {[%clk 0:00:37]}  Qd7 {[%clk 0:00:02]} 43. Rd3 {[%clk 0:00:35]}  Qe7 {[%clk 0:00:02]} 44. Qd4 {[%clk 0:00:33]}  Qf6 {[%clk 0:00:01]} 45. Qf4 {[%clk 0:00:32]}  Qe7 {[%clk 0:00:01]} 46. Rb3 {[%clk 0:00:28]}  Qc7 {[%clk 0:00:01]} 47. Qd4 {[%clk 0:00:27]}  Ba6 {[%clk 0:00:02]} 48. Rc3 {[%clk 0:00:26]}  Bb5 {[%clk 0:00:02]} 49. Bxd5 {[%clk 0:00:26]}  Rd7 {[%clk 0:00:01]} 50. Qc5 {[%clk 0:00:25]}  Qd8 {[%clk 0:00:01]} 51. Bxc6 {[%clk 0:00:23]} 1-0


[Site "https://www.chess.com"]

[Event "Titled Tuesday Blitz February 21 Early 2023"]
[White "Garv Gaur"]
[Black "Belozerov, Andrei"]
[WhiteFideId "45030839"]
[BlackFideId "4120213"]
[WhiteElo "2006"]
[BlackElo "2461"]
[Result "1-0"]
[Round "10"]
[TimeControl "180+2"]
[Date "2023.02.21"]
[WhiteClock "0:00:06"]
[BlackClock "0:00:03"]

1. Nf3 {[%clk 0:03:00]}  d5 {[%clk 0:02:58]} 2. g3 {[%clk 0:02:59]}  Bg4 {[%clk 0:02:58]} 3. Bg2 {[%clk 0:02:58]}  Nd7 {[%clk 0:02:57]} 4. d4 {[%clk 0:02:58]}  Ngf6 {[%clk 0:02:54]} 5. c4 {[%clk 0:02:57]}  e6 {[%clk 0:02:53]} 6. cxd5 {[%clk 0:02:57]}  exd5 {[%clk 0:02:53]} 7. O-O {[%clk 0:02:57]}  c6 {[%clk 0:02:52]} 8. Ne5 {[%clk 0:02:57]}  Be6 {[%clk 0:02:19]} 9. Nd3 {[%clk 0:02:53]}  Be7 {[%clk 0:02:08]} 10. Nc3 {[%clk 0:02:53]}  O-O {[%clk 0:02:06]} 11. Nf4 {[%clk 0:02:22]}  Qb6 {[%clk 0:01:31]} 12. b3 {[%clk 0:02:11]}  Rae8 {[%clk 0:01:29]} 13. Na4 {[%clk 0:02:02]}  Qd8 {[%clk 0:01:27]} 14. Bb2 {[%clk 0:02:00]}  Bf5 {[%clk 0:01:24]} 15. Rc1 {[%clk 0:01:56]}  Bd6 {[%clk 0:01:22]} 16. Nd3 {[%clk 0:01:54]}  Ne4 {[%clk 0:01:02]} 17. e3 {[%clk 0:01:43]}  Qe7 {[%clk 0:01:00]} 18. Ndc5 {[%clk 0:01:25]}  Ndf6 {[%clk 0:00:57]} 19. Ba3 {[%clk 0:01:09]}  Ng4 {[%clk 0:00:54]} 20. Qf3 {[%clk 0:00:58]}  g6 {[%clk 0:00:50]} 21. h3 {[%clk 0:00:55]}  Ngxf2 {[%clk 0:00:40]} 22. Rxf2 {[%clk 0:00:56]}  Nxf2 {[%clk 0:00:40]} 23. Qxf2 {[%clk 0:00:53]}  b6 {[%clk 0:00:40]} 24. g4 {[%clk 0:00:48]}  Bc8 {[%clk 0:00:39]} 25. Nd3 {[%clk 0:00:48]}  Bxa3 {[%clk 0:00:39]} 26. Rxc6 {[%clk 0:00:47]}  Qxe3 {[%clk 0:00:36]} 27. Ne5 {[%clk 0:00:47]}  Qxf2+ {[%clk 0:00:22]} 28. Kxf2 {[%clk 0:00:48]}  Be6 {[%clk 0:00:21]} 29. Nc3 {[%clk 0:00:43]}  Rc8 {[%clk 0:00:21]} 30. Nxd5 {[%clk 0:00:39]}  Rxc6 {[%clk 0:00:17]} 31. Nxc6 {[%clk 0:00:34]}  Bb2 {[%clk 0:00:15]} 32. Nf4 {[%clk 0:00:32]}  Re8 {[%clk 0:00:12]} 33. d5 {[%clk 0:00:31]}  Bd7 {[%clk 0:00:12]} 34. Nd3 {[%clk 0:00:29]}  Bc3 {[%clk 0:00:11]} 35. b4 {[%clk 0:00:27]}  a6 {[%clk 0:00:10]} 36. a4 {[%clk 0:00:26]}  a5 {[%clk 0:00:11]} 37. b5 {[%clk 0:00:26]}  Kg7 {[%clk 0:00:10]} 38. Kf1 {[%clk 0:00:20]}  f5 {[%clk 0:00:10]} 39. g5 {[%clk 0:00:19]}  h6 {[%clk 0:00:10]} 40. h4 {[%clk 0:00:20]}  hxg5 {[%clk 0:00:10]} 41. hxg5 {[%clk 0:00:20]}  Bd2 {[%clk 0:00:10]} 42. Nb2 {[%clk 0:00:19]}  Bxg5 {[%clk 0:00:09]} 43. Nc4 {[%clk 0:00:18]}  Be3 {[%clk 0:00:08]} 44. N4e5 {[%clk 0:00:18]}  Bxc6 {[%clk 0:00:07]} 45. bxc6 {[%clk 0:00:14]}  Bf4 {[%clk 0:00:03]} 46. Nc4 {[%clk 0:00:09]}  Rb8 {[%clk 0:00:02]} 47. d6 {[%clk 0:00:08]}  b5 {[%clk 0:00:02]} 48. c7 {[%clk 0:00:07]}  Rh8 {[%clk 0:00:02]} 49. axb5 {[%clk 0:00:07]}  a4 {[%clk 0:00:02]} 50. b6 {[%clk 0:00:06]}  a3 {[%clk 0:00:03]} 51. Nxa3 {[%clk 0:00:06]}  Bxd6 {[%clk 0:00:03]} 52. Nb5 {[%clk 0:00:06]} 1-0


[Site "https://www.chess.com"]

[Event "Titled Tuesday Blitz February 21 Early 2023"]
[White "Al-Tarboush, Ward"]
[Black "Degenbaev, Aziz"]
[WhiteFideId "7601450"]
[BlackFideId "13802640"]
[WhiteElo "2256"]
[BlackElo "2203"]
[Result "1-0"]
[Round "10"]
[TimeControl "180+2"]
[Date "2023.02.21"]
[WhiteClock "0:02:22"]
[BlackClock "0:01:51"]

1. e4 {[%clk 0:02:55]}  e6 {[%clk 0:02:57]} 2. d4 {[%clk 0:02:55]}  d5 {[%clk 0:02:57]} 3. exd5 {[%clk 0:02:56]}  exd5 {[%clk 0:02:58]} 4. Bd3 {[%clk 0:02:56]}  Nc6 {[%clk 0:02:58]} 5. Nf3 {[%clk 0:02:55]}  Bg4 {[%clk 0:02:58]} 6. c3 {[%clk 0:02:55]}  Bd6 {[%clk 0:02:58]} 7. O-O {[%clk 0:02:56]}  Nge7 {[%clk 0:02:59]} 8. Re1 {[%clk 0:02:55]}  Qd7 {[%clk 0:02:59]} 9. Nbd2 {[%clk 0:02:55]}  O-O-O {[%clk 0:02:59]} 10. b4 {[%clk 0:02:55]}  Rde8 {[%clk 0:02:57]} 11. Nb3 {[%clk 0:02:55]}  f6 {[%clk 0:02:56]} 12. b5 {[%clk 0:02:55]}  Nd8 {[%clk 0:02:56]} 13. Nc5 {[%clk 0:02:55]}  Bxc5 {[%clk 0:02:53]} 14. dxc5 {[%clk 0:02:56]}  c6 {[%clk 0:02:46]} 15. Qa4 {[%clk 0:02:41]}  cxb5 {[%clk 0:02:18]} 16. Qxa7 {[%clk 0:02:36]}  Nec6 {[%clk 0:02:13]} 17. Qa8+ {[%clk 0:02:32]}  Nb8 {[%clk 0:02:13]} 18. Bf4 {[%clk 0:02:29]}  Nc6 {[%clk 0:02:11]} 19. Bxb5 {[%clk 0:02:28]}  Bxf3 {[%clk 0:01:51]} 20. Bxb8 {[%clk 0:02:22]} 1-0


[Site "https://www.chess.com"]

[Event "Titled Tuesday Blitz February 21 Early 2023"]
[White "Yeritsyan, Hayk"]
[Black "Pajeken, Jakob Leon"]
[WhiteFideId "13307320"]
[BlackFideId "12942839"]
[WhiteElo "2241"]
[BlackElo "2417"]
[Result "1-0"]
[Round "10"]
[TimeControl "180+2"]
[Date "2023.02.21"]
[WhiteClock "0:02:09"]
[BlackClock "0:01:57"]

1. d4 {[%clk 0:02:57]}  d5 {[%clk 0:03:00]} 2. Nf3 {[%clk 0:02:56]}  Nf6 {[%clk 0:03:00]} 3. e3 {[%clk 0:02:57]}  e6 {[%clk 0:02:59]} 4. Bd3 {[%clk 0:02:57]}  Bd6 {[%clk 0:02:58]} 5. Nbd2 {[%clk 0:02:56]}  O-O {[%clk 0:02:58]} 6. Qe2 {[%clk 0:02:55]}  b6 {[%clk 0:02:55]} 7. e4 {[%clk 0:02:52]}  dxe4 {[%clk 0:02:53]} 8. Nxe4 {[%clk 0:02:53]}  Bb7 {[%clk 0:02:53]} 9. Nxf6+ {[%clk 0:02:52]}  Qxf6 {[%clk 0:02:52]} 10. Bg5 {[%clk 0:02:52]}  Bxf3 {[%clk 0:02:52]} 11. Qe3 {[%clk 0:02:53]}  Bf4 {[%clk 0:02:34]} 12. Bxf4 {[%clk 0:02:53]}  Bxg2 {[%clk 0:02:32]} 13. Rg1 {[%clk 0:02:53]}  Nc6 {[%clk 0:02:08]} 14. Rxg2 {[%clk 0:02:43]}  Qxd4 {[%clk 0:02:07]} 15. Qxd4 {[%clk 0:02:36]}  Nxd4 {[%clk 0:02:08]} 16. O-O-O {[%clk 0:02:29]}  c5 {[%clk 0:02:00]} 17. c3 {[%clk 0:02:11]}  Nf5 {[%clk 0:01:56]} 18. Bxf5 {[%clk 0:02:09]}  exf5 {[%clk 0:01:57]} 19. Bh6 {[%clk 0:02:09]} 1-0


[Site "https://www.chess.com"]

[Event "Titled Tuesday Blitz February 21 Early 2023"]
[White "Maksimenko, Viktor"]
[Black "Bambino Filho, Antonio Carlos"]
[WhiteFideId "13710478"]
[BlackFideId "2113163"]
[WhiteElo "2196"]
[BlackElo "2144"]
[Result "1-0"]
[Round "10"]
[TimeControl "180+2"]
[Date "2023.02.21"]
[WhiteClock "0:00:06"]
[BlackClock "0:00:02"]

1. d4 {[%clk 0:03:00]}  Nf6 {[%clk 0:02:56]} 2. c4 {[%clk 0:03:01]}  c5 {[%clk 0:02:57]} 3. d5 {[%clk 0:03:01]}  e6 {[%clk 0:02:57]} 4. Nf3 {[%clk 0:03:01]}  exd5 {[%clk 0:02:58]} 5. cxd5 {[%clk 0:03:02]}  d6 {[%clk 0:02:59]} 6. e4 {[%clk 0:03:02]}  g6 {[%clk 0:02:58]} 7. Bd3 {[%clk 0:02:59]}  Bg7 {[%clk 0:02:57]} 8. O-O {[%clk 0:02:59]}  O-O {[%clk 0:02:58]} 9. h3 {[%clk 0:02:59]}  a6 {[%clk 0:02:58]} 10. a4 {[%clk 0:02:56]}  Re8 {[%clk 0:02:59]} 11. Nbd2 {[%clk 0:02:56]}  Nbd7 {[%clk 0:02:52]} 12. Re1 {[%clk 0:02:56]}  Rb8 {[%clk 0:02:50]} 13. Nc4 {[%clk 0:02:54]}  Nb6 {[%clk 0:02:49]} 14. Na3 {[%clk 0:02:49]}  c4 {[%clk 0:02:42]} 15. Bc2 {[%clk 0:02:48]}  Qc7 {[%clk 0:02:41]} 16. Bf4 {[%clk 0:02:47]}  Nbd7 {[%clk 0:02:38]} 17. Nd4 {[%clk 0:02:43]}  Ne5 {[%clk 0:02:30]} 18. Rc1 {[%clk 0:02:40]}  Bd7 {[%clk 0:02:24]} 19. Bb1 {[%clk 0:02:34]}  b5 {[%clk 0:02:22]} 20. axb5 {[%clk 0:02:33]}  axb5 {[%clk 0:02:23]} 21. b4 {[%clk 0:02:30]}  Qb7 {[%clk 0:02:07]} 22. Qd2 {[%clk 0:02:23]}  Ra8 {[%clk 0:02:04]} 23. Rc3 {[%clk 0:02:11]}  h5 {[%clk 0:01:39]} 24. Be3 {[%clk 0:02:05]}  Nd3 {[%clk 0:01:15]} 25. Bxd3 {[%clk 0:02:03]}  cxd3 {[%clk 0:01:16]} 26. f3 {[%clk 0:02:03]}  Nxd5 {[%clk 0:01:01]} 27. exd5 {[%clk 0:01:57]}  Rxe3 {[%clk 0:01:01]} 28. Qxe3 {[%clk 0:01:54]}  Re8 {[%clk 0:00:51]} 29. Qxe8+ {[%clk 0:01:45]}  Bxe8 {[%clk 0:00:52]} 30. Rxe8+ {[%clk 0:01:45]}  Kh7 {[%clk 0:00:52]} 31. Rxd3 {[%clk 0:01:45]}  Qxd5 {[%clk 0:00:50]} 32. Nac2 {[%clk 0:01:44]}  Qc4 {[%clk 0:00:45]} 33. Ree3 {[%clk 0:01:36]}  d5 {[%clk 0:00:34]} 34. Rc3 {[%clk 0:01:27]}  Qa2 {[%clk 0:00:32]} 35. Nxb5 {[%clk 0:01:21]}  Qb1+ {[%clk 0:00:24]} 36. Kh2 {[%clk 0:01:19]}  Qd1 {[%clk 0:00:19]} 37. f4 {[%clk 0:00:50]}  d4 {[%clk 0:00:15]} 38. Nbxd4 {[%clk 0:00:50]}  Bxd4 {[%clk 0:00:15]} 39. Rcd3 {[%clk 0:00:37]}  Qxc2 {[%clk 0:00:15]} 40. Rxd4 {[%clk 0:00:38]}  Qc1 {[%clk 0:00:15]} 41. Red3 {[%clk 0:00:35]}  h4 {[%clk 0:00:12]} 42. f5 {[%clk 0:00:34]}  g5 {[%clk 0:00:11]} 43. b5 {[%clk 0:00:33]}  Qb2 {[%clk 0:00:10]} 44. Rd5 {[%clk 0:00:33]}  f6 {[%clk 0:00:05]} 45. Rd2 {[%clk 0:00:30]}  Qb4 {[%clk 0:00:05]} 46. Kg1 {[%clk 0:00:30]}  Qb1+ {[%clk 0:00:04]} 47. Kf2 {[%clk 0:00:30]}  Qb4 {[%clk 0:00:05]} 48. Ke3 {[%clk 0:00:29]}  Qf4+ {[%clk 0:00:05]} 49. Kd3 {[%clk 0:00:29]}  Qb4 {[%clk 0:00:04]} 50. Ke2 {[%clk 0:00:24]}  Qc4+ {[%clk 0:00:05]} 51. Ke1 {[%clk 0:00:19]}  Qe4+ {[%clk 0:00:04]} 52. Kf1 {[%clk 0:00:19]}  Qf4+ {[%clk 0:00:05]} 53. Kg1 {[%clk 0:00:20]}  Qb4 {[%clk 0:00:05]} 54. Kh1 {[%clk 0:00:15]}  Qb1+ {[%clk 0:00:05]} 55. Rd1 {[%clk 0:00:15]}  Qb4 {[%clk 0:00:06]} 56. Rd6 {[%clk 0:00:15]}  Kg7 {[%clk 0:00:04]} 57. b6 {[%clk 0:00:15]}  Qb3 {[%clk 0:00:04]} 58. Rf1 {[%clk 0:00:13]}  g4 {[%clk 0:00:04]} 59. hxg4 {[%clk 0:00:11]}  h3 {[%clk 0:00:04]} 60. Rf2 {[%clk 0:00:09]}  Qg3 {[%clk 0:00:02]} 61. Rd7+ {[%clk 0:00:06]}  Kh6 {[%clk 0:00:02]} 62. Rdd2 {[%clk 0:00:05]}  Kg5 {[%clk 0:00:01]} 63. gxh3 {[%clk 0:00:05]}  Qxh3+ {[%clk 0:00:02]} 64. Kg1 {[%clk 0:00:05]}  Qf3 {[%clk 0:00:02]} 65. Rxf3 {[%clk 0:00:06]} 1-0


[Site "https://www.chess.com"]